bitfinex/quotes_ETHUSD_20250623
["timestamp","ask_amount","ask_price","bid_price","bid_amount"]
[1750682612097,7.71,2262.9,2262.3,5.19127078]
[1750682612302,17.096,2262.9,2262.4,0.57164592]
[1750682614022,15.117,2262.9,2262.4,0.57164592]
[1750682614216,15.117,2262.9,2262.3,0.771]
[1750682618617,15.117,2262.9,2262.0,0.8117]
[1750682618792,0.6053,2262.8,2262.0,0.8117]
[1750682619483,8.3153,2262.8,2262.0,0.8117]
[1750682620720,9.375,2262.7,2262.0,0.8117]
[1750682620911,9.375,2262.7,2262.0,2.33498539]
[1750682622019,8.3153,2262.8,2262.0,2.33498539]
[1750682622188,9.375,2262.6,2262.0,2.33498539]
[1750682624421,9.366,2262.6,2262.0,2.33498539]
[1750682624582,9.365,2262.7,2262.0,0.8117]
[1750682624782,9.365,2262.7,2262.0,5.23240723]
[1750682625010,7.388,2262.7,2262.4,0.8059]
[1750682625216,9.687,2262.8,2262.4,0.8059]
[1750682626129,9.687,2262.8,2262.4,5.2259839]
[1750682626295,9.687,2262.8,2262.4,0.8059]
[1750682628303,7.71,2262.8,2262.4,1.77056452]
[1750682628609,17.6623,2263.4,2262.8,4.41930049]
[1750682628809,8.3153,2263.4,2262.6,0.7877]
[1750682629733,8.3153,2263.4,2262.6,5.20732887]
[1750682631007,8.3153,2263.4,2262.6,0.7877]
[1750682631335,1.76623,2263.3,2262.6,0.7877]
[1750682632438,1.76623,2263.3,2262.6,5.20731855]
[1750682632745,8.3153,2263.4,2262.7,4.41939785]
[1750682633040,17.6603,2263.4,2262.7,4.41943248]
[1750682633261,17.6603,2263.4,2262.6,0.7877]
[1750682638717,0.6053,2263.3,2262.4,11.74916452]
[1750682638924,0.6053,2263.3,2262.4,1.74916452]
[1750682639150,1.76603,2263.2,2262.4,1.74916452]
[1750682639511,7.71,2263.1,2262.4,1.74916452]
[1750682639842,7.9743,2263.0,2262.2,0.8183]
[1750682640041,1.966,2262.9,2262.2,0.8183]
[1750682641126,9.676,2262.9,2262.2,0.8183]
[1750682641316,0.6053,2262.7,2261.7,0.8271]
[1750682641514,15.078,2262.6,2261.7,5.24854614]
[1750682641718,15.078,2262.6,2261.7,10.8271]
[1750682642036,0.6053,2262.5,2261.7,10.8271]
[1750682642214,1.966,2262.4,2261.7,0.8271]
[1750682642414,1.966,2262.4,2261.7,10.8271]
[1750682642660,1.966,2262.4,2261.8,1.52487238]
[1750682642815,0.6053,2262.5,2261.8,1.52487238]
[1750682643150,9.9363,2262.5,2261.9,4.42106049]
[1750682643548,0.6053,2262.5,2261.9,4.42106049]
[1750682643722,0.6053,2262.5,2261.8,5.94602131]
[1750682643929,0.6053,2262.5,2261.9,2.11944922]
[1750682644126,0.6053,2262.5,2261.8,11.52487238]
[1750682644445,0.6053,2262.5,2261.8,1.52487238]
[1750682644830,0.6053,2262.5,2261.8,5.94608443]
[1750682645031,9.9343,2262.5,2261.8,5.94608443]
[1750682645347,0.6053,2262.5,2261.9,4.42103375]
[1750682645555,7.71,2262.6,2262.0,1.85821182]
[1750682647048,7.71,2262.6,2262.0,1.80821182]
[1750682647361,7.71,2262.6,2262.0,0.7715]
[1750682650425,7.71,2262.6,2261.8,16.72411146]
[1750682650628,7.71,2262.6,2261.8,12.30287238]
[1750682653257,17.026,2262.6,2261.8,12.30287238]
[1750682653445,0.6553,2262.5,2261.8,1.52487238]
[1750682653645,1.76813,2262.4,2261.6,1.24800472]
[1750682653854,1.76813,2262.4,2261.6,15.22494089]
[1750682654049,9.315,2262.4,2261.7,14.61659891]
[1750682654247,9.315,2262.4,2261.8,4.4211807]
[1750682654666,7.71,2262.6,2262.2,4.42038172]
[1750682654968,0.6553,2262.9,2262.4,0.7557]
[1750682655126,0.6553,2262.9,2262.4,2.29281715]
[1750682655933,0.6553,2262.9,2262.4,0.7557]
[1750682659876,0.6553,2262.9,2262.2,4.42042718]
[1750682660374,0.6553,2262.9,2262.1,4.42058609]
[1750682660869,0.6553,2262.9,2262.0,0.7714]
[1750682661466,0.6553,2262.9,2262.0,5.1922559]
[1750682661675,1.06553,2262.8,2262.0,7.15359774]
[1750682661836,7.348,2262.7,2262.0,7.15359774]
[1750682662031,7.348,2262.7,2262.0,2.73274184]
[1750682662238,0.6553,2262.6,2262.0,7.15359401]
[1750682662547,0.6553,2262.6,2262.1,4.42064914]
[1750682662879,0.6553,2262.6,2262.2,1.1574251]
[1750682664563,9.293,2262.7,2262.2,1.1574251]
[1750682664564,0.6553,2262.9,2262.2,1.1574251]
[1750682664763,9.293,2262.8,2262.2,4.42038326]
[1750682665559,9.293,2262.8,2262.0,2.73274184]
[1750682665754,9.293,2262.8,2262.1,4.4205285]
[1750682666164,9.293,2262.8,2262.2,4.42043038]
[1750682666482,9.293,2262.8,2262.3,0.88409352]
[1750682666679,0.6553,2262.9,2262.4,5.20518259]
[1750682666986,0.6553,2262.9,2262.4,0.7852]
[1750682667658,10.0,2263.0,2262.4,0.7852]
[1750682667853,11.945,2263.0,2262.4,5.20527292]
[1750682668051,11.945,2263.0,2262.5,0.59805962]
[1750682668248,1.945,2263.0,2262.5,5.01793275]
[1750682668877,1.945,2263.0,2262.5,0.59805962]
[1750682669183,17.6583,2263.1,2262.4,5.20525257]
[1750682669479,10.3103,2263.1,2262.4,0.7852]
[1750682669671,17.6583,2263.1,2262.4,0.7852]
[1750682670385,17.6583,2263.1,2262.4,15.2052562]
[1750682670589,8.3653,2263.1,2262.4,10.7852]
[1750682670760,7.71,2263.1,2262.5,1.07852]
[1750682670966,7.71,2263.1,2262.7,10.0]
[1750682671677,0.6553,2263.3,2262.8,5.23065808]
[1750682672187,7.71,2263.7,2262.9,4.41895227]
[1750682672488,7.71,2263.7,2263.3,10.0]
[1750682672687,7.71,2263.7,2263.3,10.44304328]
[1750682673190,7.71,2263.7,2263.3,0.44304328]
[1750682673351,7.71,2263.7,2263.2,15.20998674]
[1750682673557,7.71,2263.7,2263.2,10.7915]
[1750682673783,7.71,2263.7,2263.2,12.80669963]
[1750682674291,7.71,2263.7,2263.2,17.22514422]
[1750682674457,7.71,2263.7,2263.3,4.41824495]
[1750682674775,7.71,2263.7,2263.2,12.80669963]
[1750682675301,7.71,2263.7,2263.2,17.22522056]
[1750682675501,7.71,2263.7,2263.3,2.16438254]
[1750682675863,7.71,2263.7,2263.2,5.21002093]
[1750682676057,0.6553,2263.9,2263.2,5.65551993]
[1750682676257,0.6553,2263.9,2263.2,1.236999]
[1750682676458,0.6553,2263.9,2263.2,5.65549588]
[1750682676769,0.6553,2263.9,2263.2,1.236999]
[1750682677094,0.6553,2263.9,2263.3,0.56556008]
[1750682678600,2.6003,2263.9,2263.3,4.98383313]
[1750682678958,2.6003,2263.9,2263.4,4.41812125]
[1750682679303,2.6003,2263.9,2263.3,0.56556008]
[1750682679803,2.6003,2263.9,2263.3,4.9838716]
[1750682680007,0.6553,2263.9,2263.4,6.0402021]
[1750682680311,0.6553,2263.9,2263.4,1.62208706]
[1750682680484,7.345,2263.8,2263.3,0.56556008]
[1750682680792,7.345,2263.8,2263.2,1.236999]
[1750682680996,7.345,2263.8,2263.2,0.445499]
[1750682681197,0.6553,2263.9,2263.1,4.41871365]
[1750682681362,0.6553,2263.7,2263.0,1.34233523]
[1750682681560,0.6553,2263.7,2263.0,11.34233523]
[1750682681758,0.6553,2263.7,2263.1,11.57613703]
[1750682681973,0.6553,2263.7,2263.1,16.44043507]
[1750682682262,9.29,2263.6,2263.1,16.44043507]
[1750682682463,0.6553,2263.7,2263.1,16.44043507]
[1750682682662,7.345,2263.6,2263.1,16.44043507]
[1750682682972,7.345,2263.6,2263.2,2.2201631]
[1750682683683,7.345,2263.6,2263.1,10.44565534]
[1750682684101,9.9453,2263.7,2263.2,4.41845201]
[1750682684263,0.6553,2263.7,2263.2,4.41845201]
[1750682684793,0.6553,2263.7,2263.1,14.86427043]
[1750682685092,0.6553,2263.7,2263.1,14.86422515]
[1750682685297,0.6553,2263.7,2263.3,4.4183263]
[1750682685511,0.6553,2263.7,2263.2,6.48095191]
[1750682685711,0.6553,2263.7,2263.2,2.06254196]
[1750682686083,0.6553,2263.7,2263.1,14.86429121]
[1750682686285,0.6553,2263.7,2263.1,10.44565534]
[1750682686505,0.6553,2263.7,2263.1,14.86434839]
[1750682686703,9.9453,2263.7,2263.1,14.86434839]
[1750682686982,9.9453,2263.7,2263.1,10.44565534]
[1750682687181,9.9453,2263.7,2263.1,16.92688298]
[1750682689232,9.9453,2263.7,2263.2,4.41845247]
[1750682689377,0.6553,2263.7,2263.1,12.50823733]
[1750682689582,0.6553,2263.7,2263.2,4.41835405]
[1750682689879,0.6553,2263.7,2263.3,1.69265914]
[1750682690084,0.6553,2263.7,2263.3,6.11090351]
[1750682690315,0.6553,2263.7,2263.3,13.07485497]
[1750682690522,9.9433,2264.0,2263.4,5.20093833]
[1750682691011,0.6553,2264.0,2263.5,11.38188662]
[1750682691392,0.6553,2264.0,2263.5,13.2094395]
[1750682692015,0.6553,2264.0,2263.5,17.62723463]
[1750682692325,0.6553,2264.0,2263.5,6.2453086]
[1750682692493,0.6553,2264.0,2263.5,6.24537358]
[1750682692878,0.6553,2264.0,2263.5,1.82755288]
[1750682693789,7.9983,2264.0,2263.4,5.20098572]
[1750682694520,7.9983,2264.0,2263.4,5.20100505]
[1750682695909,7.9983,2264.0,2263.4,5.20097077]
[1750682696217,0.6553,2264.0,2263.5,4.41780424]
[1750682696391,0.6553,2264.0,2263.4,10.7829]
[1750682696599,0.6553,2264.0,2263.5,2.71053447]
[1750682696784,0.6553,2264.0,2263.4,10.7829]
[1750682696979,0.6553,2264.0,2263.4,0.7829]
[1750682697211,0.6553,2264.0,2263.4,5.20086434]
[1750682698603,0.6553,2264.0,2263.3,16.1108701]
[1750682698987,2.71153,2264.0,2263.3,11.69265914]
[1750682699520,2.71153,2264.0,2263.3,16.11090476]
[1750682699822,2.71153,2264.0,2263.3,16.11096802]
[1750682700643,2.71153,2264.0,2263.3,11.69265914]
[1750682701139,0.6553,2263.9,2263.2,0.7859]
[1750682701303,0.6553,2263.9,2263.1,2.50823733]
[1750682701504,0.6553,2263.9,2263.2,10.0]
[1750682702604,0.6553,2263.9,2263.2,14.4184696]
[1750682702940,0.6553,2263.9,2263.3,15.38260951]
[1750682703242,0.6553,2263.9,2263.4,6.69041859]
[1750682703839,0.6553,2263.9,2263.4,2.27236095]
[1750682704015,0.6553,2263.9,2263.1,14.86427962]
[1750682704216,0.6553,2263.9,2263.2,10.0]
[1750682705430,0.6553,2263.9,2263.0,5.2302069]
[1750682705833,0.6553,2263.9,2263.2,10.0]
[1750682706141,2.5983,2263.9,2263.3,4.41824238]
[1750682706352,0.6553,2263.9,2263.3,6.34559287]
[1750682706697,0.6553,2263.9,2263.4,0.8202]
[1750682707213,0.6553,2263.9,2263.4,5.2383267]
[1750682707437,0.6553,2263.9,2263.4,0.8202]
[1750682708160,0.6553,2263.9,2263.5,4.41784943]
[1750682708369,0.6553,2263.9,2263.6,0.96560885]
[1750682708726,0.6553,2263.9,2263.4,5.23820827]
[1750682709159,0.6553,2263.9,2263.4,5.23816437]
[1750682709359,0.6553,2263.9,2263.4,5.23825346]
[1750682709569,0.6553,2263.9,2263.5,4.41792395]
[1750682710162,0.6553,2263.9,2263.4,5.23822304]
[1750682710474,0.6553,2263.9,2263.5,1.15837991]
[1750682711257,0.6553,2263.9,2263.4,0.8202]
[1750682711461,0.6553,2263.9,2263.4,5.23832317]
[1750682711651,0.6553,2263.9,2263.5,4.41784989]
[1750682711967,0.6553,2263.9,2263.4,10.8202]
[1750682712183,2.5983,2264.1,2263.5,4.41774648]
[1750682712473,2.5983,2264.1,2263.6,5.9414372]
[1750682712627,2.5983,2264.1,2263.6,1.52379465]
[1750682713056,2.5983,2264.1,2263.4,15.23823503]
[1750682713871,2.5983,2264.1,2263.4,19.65620855]
[1750682714172,2.5983,2264.1,2263.4,15.23817352]
[1750682714372,2.5983,2264.1,2263.6,4.41764225]
[1750682714572,0.6553,2264.1,2263.6,6.96306006]
[1750682714744,0.6553,2264.1,2263.7,5.11385196]
[1750682715073,0.6553,2264.1,2263.8,11.38037883]
[1750682715364,0.6553,2264.1,2263.8,4.41731877]
[1750682715569,0.6553,2264.1,2263.7,12.07679212]
[1750682715784,0.6553,2264.3,2263.9,4.41702194]
[1750682716083,0.6553,2264.5,2264.0,4.93759676]
[1750682716238,0.6553,2264.5,2264.0,0.52065219]
[1750682716432,0.6553,2264.5,2264.0,4.93758811]
[1750682716767,0.6553,2264.5,2264.1,4.91050575]
[1750682716954,0.6553,2264.5,2264.1,0.49375881]
[1750682718249,0.6553,2264.5,2264.2,4.41654197]
[1750682718675,1.943,2264.9,2264.2,4.41654197]
[1750682718886,0.6553,2264.8,2264.1,0.49375881]
[1750682719089,0.6553,2264.7,2264.1,0.49375881]
[1750682719937,0.6553,2264.7,2264.1,4.91049332]
[1750682720469,0.6553,2264.7,2264.1,0.49375881]
[1750682724062,0.6553,2264.7,2264.1,4.91048489]
[1750682724459,0.6553,2264.7,2264.1,0.49375881]
[1750682724653,0.6553,2264.7,2264.1,4.91051605]
[1750682725394,0.6553,2264.7,2264.2,0.98480163]
[1750682726705,0.6553,2264.7,2264.4,4.41607432]
[1750682726890,0.6553,2265.0,2264.5,10.0]
[1750682727052,10.3063,2265.2,2264.6,0.7731]
[1750682727253,8.3653,2265.2,2264.9,4.41513687]
[1750682727675,7.71,2265.2,2265.0,4.41492533]
[1750682727848,7.71,2265.2,2264.9,1.90384795]
[1750682728250,7.71,2265.2,2264.8,10.0]
[1750682728450,0.6553,2265.0,2264.1,1.47855981]
[1750682728785,0.6553,2264.9,2263.9,4.41698593]
[1750682728988,0.6553,2264.7,2263.9,0.36873652]
[1750682729153,0.6553,2264.7,2264.0,10.0]
[1750682729350,0.6553,2264.7,2264.0,0.36872023]
[1750682730089,1.94,2264.7,2264.0,0.36872023]
[1750682730273,1.5828,2264.6,2264.0,0.36872023]
[1750682730448,1.5828,2264.6,2264.0,0.8060273]
[1750682730800,0.6553,2264.6,2264.1,4.41665807]
[1750682730960,0.6553,2264.6,2264.1,5.19865807]
[1750682731164,0.6553,2264.6,2264.2,4.41645854]
[1750682731368,0.6553,2265.0,2264.4,4.41610394]
[1750682731575,0.6553,2265.0,2264.3,4.41629121]
[1750682731761,2.41923,2265.0,2264.4,4.41610143]
[1750682731980,0.6553,2265.0,2264.4,4.41599114]
[1750682732165,0.6553,2265.0,2264.5,4.4158745]
[1750682732791,0.6553,2265.0,2264.4,4.4159961]
[1750682732962,0.6553,2265.0,2264.2,10.0]
[1750682733163,0.6553,2265.0,2264.6,4.41564048]
[1750682733792,0.6553,2265.0,2264.7,4.41558713]
[1750682734888,8.3653,2265.2,2264.6,0.96422656]
[1750682735073,8.3653,2265.2,2264.8,8.83045614]
[1750682735252,7.71,2265.2,2265.0,0.819]
[1750682735655,7.71,2265.2,2264.9,4.41512581]
[1750682735855,7.71,2265.2,2265.0,0.44151258]
[1750682736096,7.71,2265.2,2265.0,4.8565142]
[1750682736312,0.6553,2265.6,2265.1,4.41481612]
[1750682736515,0.6553,2265.6,2265.0,4.85640344]
[1750682736829,0.2308363,2266.8,2265.5,10.20809527]
[1750682737106,10.20809527,2266.8,2265.7,1.369]
[1750682737267,0.6553,2266.7,2265.6,0.6553]
[1750682737470,0.55,2266.6,2265.7,1.32675]
[1750682737695,0.6553,2266.5,2265.7,1.32675]
[1750682737899,0.6553,2266.5,2266.1,10.20809527]
[1750682738107,0.6553,2267.0,2266.2,1.02080953]
[1750682739009,0.6553,2267.0,2266.2,5.43347657]
[1750682739198,0.6553,2267.0,2266.2,8.93080953]
[1750682739868,0.6553,2267.0,2266.2,13.34340192]
[1750682740070,0.6553,2267.0,2266.4,10.20809527]
[1750682740408,0.6553,2267.3,2266.7,10.20809527]
[1750682740571,0.6553,2267.3,2266.7,18.11009527]
[1750682741104,0.6553,2267.3,2266.6,7.899]
[1750682741408,0.6553,2267.3,2266.5,10.12705482]
[1750682741604,0.6553,2267.3,2266.5,14.53913914]
[1750682741808,0.6553,2267.3,2266.6,3.70202344]
[1750682742113,0.6553,2267.3,2266.7,10.20809527]
[1750682742292,0.6553,2267.3,2266.6,21.79911871]
[1750682742467,0.6553,2267.3,2266.6,26.21098846]
[1750682742807,0.6553,2267.6,2266.9,10.20809527]
[1750682743007,0.6553,2267.6,2267.2,10.20809527]
[1750682744019,0.6553,2267.6,2267.2,1.325911]
[1750682744304,2.273,2267.6,2266.5,0.7947]
[1750682744506,0.6553,2267.5,2266.3,18.08509527]
[1750682744682,0.6553,2267.5,2266.7,1.326175]
[1750682745009,0.6553,2267.3,2266.7,1.326175]
[1750682745309,0.6553,2267.1,2266.0,10.20809527]
[1750682745469,0.6553,2267.1,2266.2,1.326491]
[1750682746013,0.6553,2267.1,2266.0,10.65689048]
[1750682746014,0.6553,2266.8,2266.0,10.65689048]
[1750682746209,0.6553,2266.8,2266.1,0.6553]
[1750682746407,0.6553,2266.8,2266.2,1.13121905]
[1750682746724,0.6553,2266.8,2266.1,0.6553]
[1750682747203,0.6553,2266.8,2266.1,5.06806658]
[1750682747412,0.6553,2266.8,2266.1,0.6553]
[1750682747910,0.6553,2266.8,2266.1,5.06804212]
[1750682748095,0.6553,2266.8,2266.1,0.6553]
[1750682748410,0.6553,2266.8,2266.2,0.55170446]
[1750682750174,0.6553,2266.8,2266.2,4.96436008]
[1750682750411,0.6553,2266.8,2266.3,4.4124754]
[1750682750785,10.6553,2267.1,2266.4,5.17357614]
[1750682751288,10.6553,2267.1,2266.4,5.54190591]
[1750682751483,10.6553,2267.1,2266.5,0.55419059]
[1750682751999,10.6553,2267.1,2266.4,0.36832977]
[1750682752202,0.6553,2267.0,2266.4,0.36832977]
[1750682753027,0.6553,2267.0,2266.2,0.55170446]
[1750682753232,0.6553,2267.0,2266.2,4.96422494]
[1750682753388,0.6553,2267.0,2266.2,9.37671744]
[1750682753593,0.6553,2267.0,2266.3,2.66203221]
[1750682753788,0.6553,2267.0,2266.4,4.41221573]
[1750682754030,0.6553,2267.0,2266.5,4.41206836]
[1750682754730,0.6553,2267.0,2266.4,7.93970464]
[1750682754931,0.6553,2267.0,2266.3,10.47603221]
[1750682755114,0.6553,2267.0,2266.4,1.77123259]
[1750682755315,0.6553,2267.0,2266.4,3.09752459]
[1750682759699,0.6553,2267.0,2266.4,7.50980348]
[1750682760099,0.6553,2267.0,2266.4,3.09752459]
[1750682760395,0.6553,2267.0,2266.0,0.44879521]
[1750682760601,0.6553,2267.0,2266.0,4.41296455]
[1750682760834,0.6553,2267.0,2266.1,7.93970464]
[1750682760995,0.6553,2267.0,2266.3,4.41238986]
[1750682761195,0.6553,2267.0,2266.3,0.7507]
[1750682761395,0.6553,2267.0,2266.4,5.26495152]
[1750682761839,0.6553,2267.0,2266.5,4.41203277]
[1750682762016,0.6553,2267.0,2266.4,5.26495816]
[1750682762329,0.6553,2267.0,2266.4,0.85277]
[1750682762523,0.6553,2267.0,2266.6,4.41188529]
[1750682762719,0.6553,2267.0,2266.6,5.37954494]
[1750682763424,0.6553,2267.2,2266.7,4.41156698]
[1750682763733,0.6553,2267.2,2266.6,0.96765965]
[1750682764033,0.6553,2267.2,2266.6,13.14454413]
[1750682764239,0.6553,2267.2,2266.9,4.4111693]
[1750682764436,0.6553,2267.8,2267.1,4.41091225]
[1750682764643,0.6553,2267.8,2266.9,4.41119093]
[1750682764944,0.6553,2267.8,2266.9,5.73713218]
[1750682765116,0.6553,2267.8,2267.0,1.0952889]
[1750682765516,0.6553,2267.8,2267.0,4.4110118]
[1750682765712,0.6053,2267.8,2267.0,4.4110118]
[1750682766136,0.6053,2267.8,2267.0,8.82194554]
[1750682766341,0.6053,2267.8,2266.8,2.130229]
[1750682766342,0.6053,2267.8,2266.8,6.54170716]
[1750682766546,0.6053,2267.8,2267.0,7.93970464]
[1750682766707,0.6053,2267.8,2267.2,4.41063692]
[1750682767255,0.6053,2267.8,2267.1,16.47809502]
[1750682767453,0.6053,2267.8,2267.2,4.41064231]
[1750682767752,0.6053,2267.8,2267.1,12.0672949]
[1750682768144,0.6053,2267.8,2267.3,4.41052182]
[1750682768349,0.6053,2267.8,2267.4,0.44105218]
[1750682768525,0.6053,2267.8,2267.1,1.2350949]
[1750682768860,0.6053,2267.8,2267.1,11.1570949]
[1750682769927,0.6053,2267.8,2267.1,1.2350949]
[1750682770343,0.6053,2267.8,2267.0,7.729]
[1750682770722,0.6053,2267.8,2266.8,1.325929]
[1750682770925,0.6053,2267.5,2266.2,10.92964761]
[1750682771138,0.55,2267.2,2266.3,1.326262]
[1750682771344,0.6053,2267.1,2266.3,1.326262]
[1750682771642,0.6053,2267.1,2266.4,0.57388318]
[1750682771828,0.6053,2267.1,2266.4,0.94221295]
[1750682772371,0.6053,2267.1,2266.5,10.92964761]
[1750682772662,0.6053,2267.1,2266.6,0.36829727]
[1750682773967,0.6053,2267.1,2266.6,4.78015469]
[1750682774136,0.6053,2267.1,2266.7,1.93684309]
[1750682774541,0.6053,2267.1,2266.7,6.34852618]
[1750682774730,0.6053,2267.1,2266.7,1.93684309]
[1750682775063,0.6053,2267.1,2266.7,6.34850298]
[1750682775650,0.6053,2267.1,2266.7,1.93684309]
[1750682775836,0.6053,2267.1,2266.8,0.96468431]
[1750682776861,0.6053,2267.1,2266.7,1.93684309]
[1750682776862,0.6053,2267.1,2266.4,0.57388318]
[1750682777054,0.6053,2267.1,2266.4,12.68715459]
[1750682777467,0.6053,2267.1,2266.4,8.27488318]
[1750682777970,0.6053,2267.1,2266.4,8.26688318]
[1750682778166,0.6053,2267.1,2266.4,0.57388318]
[1750682778367,0.6053,2267.1,2266.5,1.04508832]
[1750682780037,0.6053,2267.1,2266.4,0.57388318]
[1750682780732,0.5553,2267.1,2266.4,0.57388318]
[1750682782560,10.0,2267.1,2266.4,0.57388318]
[1750682782764,10.0,2267.1,2266.1,1.326433]
[1750682782982,10.0,2267.1,2266.0,4.85490378]
[1750682783156,10.0,2267.1,2266.0,4.41304712]
[1750682783361,10.0,2267.1,2266.1,4.4128383]
[1750682783649,0.5553,2267.0,2266.0,4.41293604]
[1750682783873,0.5553,2267.0,2266.1,2.65589686]
[1750682784461,10.0,2267.1,2266.1,2.65589686]
[1750682784462,0.5553,2266.8,2266.1,2.65589686]
[1750682784801,0.5553,2266.8,2266.0,0.44335388]
[1750682785092,0.5553,2266.8,2265.9,4.4130932]
[1750682785396,0.5553,2266.8,2266.0,4.41294543]
[1750682785887,0.5553,2266.8,2266.0,4.41306266]
[1750682786087,0.5553,2266.8,2266.1,4.41279723]
[1750682786385,0.5553,2266.8,2266.2,0.44127972]
[1750682786582,0.5553,2266.8,2266.1,4.41277468]
[1750682787151,0.5553,2266.8,2265.8,20.445]
[1750682787469,0.5553,2266.7,2265.7,1.326644]
[1750682787677,0.5553,2266.5,2265.7,4.41355897]
[1750682787840,0.5553,2266.5,2265.6,4.41376451]
[1750682788049,0.55,2266.4,2264.7,16.69998574]
[1750682788257,0.5553,2266.3,2265.2,4.41450913]
[1750682788451,0.5553,2266.0,2265.1,2.108667]
[1750682788699,0.55,2265.9,2264.9,12.83860342]
[1750682788998,0.5553,2265.8,2264.9,12.06710342]
[1750682789168,0.5553,2265.8,2265.0,2.57545]
[1750682789370,0.5553,2265.8,2265.0,6.99045036]
[1750682789567,0.5553,2265.8,2265.0,6.99035142]
[1750682789783,0.5553,2265.8,2265.0,2.57545]
[1750682790676,0.5553,2265.8,2265.0,7.42774486]
[1750682791010,0.5553,2265.8,2265.2,4.41452165]
[1750682791707,0.5553,2265.8,2265.2,4.41462122]
[1750682791924,0.5553,2265.8,2265.5,4.41392982]
[1750682792708,0.5553,2265.8,2265.5,4.4139245]
[1750682792864,0.5553,2266.1,2265.8,4.41330256]
[1750682793207,0.5553,2266.1,2265.7,4.41355456]
[1750682793413,0.5553,2266.1,2265.5,5.18844237]
[1750682793414,0.5553,2266.1,2265.5,14.23397476]
[1750682793590,0.5553,2266.1,2265.6,4.41382214]
[1750682793759,0.5553,2266.1,2265.7,4.41363165]
[1750682793964,0.5553,2266.1,2265.7,6.27838959]
[1750682794398,0.5553,2266.1,2265.7,6.27838683]
[1750682794991,0.5553,2266.1,2265.7,1.86475794]
[1750682795177,0.5553,2266.1,2265.7,6.2783729]
[1750682795383,0.5553,2266.1,2265.7,6.27829797]
[1750682795589,0.5553,2266.1,2265.8,0.6278298]
[1750682795770,0.5553,2266.1,2265.7,1.86475794]
[1750682796301,0.5553,2266.1,2265.4,4.41414791]
[1750682796467,0.5553,2266.1,2265.5,4.41402415]
[1750682797696,0.5553,2266.1,2265.4,4.4141535]
[1750682797890,0.5553,2266.1,2265.5,4.41401947]
[1750682798292,0.5553,2266.1,2265.6,4.41376561]
[1750682798497,0.5553,2266.1,2265.7,0.88277851]
[1750682798677,0.5553,2266.1,2265.5,4.41393451]
[1750682799075,0.5553,2266.1,2265.5,4.41394772]
[1750682799275,0.5553,2266.1,2265.4,4.41412557]
[1750682799802,0.5553,2266.1,2265.3,16.51569382]
[1750682799999,0.5553,2266.1,2265.3,1.326885]
[1750682800300,0.5553,2266.1,2265.3,1.26459595]
[1750682800976,0.5553,2266.1,2265.3,5.67901264]
[1750682802100,0.5553,2266.0,2265.3,1.26459595]
[1750682802398,0.5553,2266.0,2265.3,4.41442634]
[1750682803294,0.5553,2266.0,2265.3,4.41426028]
[1750682805498,0.5553,2266.0,2265.2,2.105]
[1750682806700,0.5553,2266.0,2265.1,6.48445232]
[1750682806895,0.5553,2266.0,2265.1,5.15744028]
[1750682807097,0.5553,2265.8,2265.2,0.77007445]
[1750682807401,0.5553,2265.8,2265.2,5.18454905]
[1750682808097,0.5553,2265.8,2265.2,0.77007445]
[1750682808300,0.5553,2265.8,2265.2,10.17624761]
[1750682808500,0.5553,2265.8,2265.1,0.74277449]
[1750682808686,0.5553,2265.8,2265.0,0.43730425]
[1750682808887,0.5553,2265.6,2264.7,1.327266]
[1750682809090,0.5553,2265.4,2264.7,1.327266]
[1750682809291,0.5553,2265.4,2264.4,0.21908324]
[1750682809599,0.5553,2265.4,2264.5,4.41579509]
[1750682809775,0.5553,2265.4,2264.6,5.43168318]
[1750682809976,0.5553,2265.4,2264.6,1.0159275]
[1750682810175,0.5553,2265.4,2264.6,10.17624761]
[1750682810507,10.0,2266.1,2264.9,10.17624761]
[1750682810508,0.5553,2266.0,2264.9,10.17624761]
[1750682810703,0.5553,2266.0,2265.0,4.41496276]
[1750682810895,0.5553,2266.0,2264.9,6.5210975]
[1750682811200,0.5553,2266.0,2265.0,4.41501026]
[1750682811402,0.55,2265.6,2264.7,10.0]
[1750682811575,0.55,2265.6,2264.7,14.41549334]
[1750682811769,0.5553,2265.5,2264.7,14.41549334]
[1750682811966,0.5553,2265.4,2264.6,4.86164281]
[1750682812363,0.5553,2265.4,2264.6,0.44595979]
[1750682812566,0.5553,2265.3,2264.6,5.68690246]
[1750682812790,0.5553,2265.3,2264.7,4.41559519]
[1750682813000,0.5553,2265.3,2264.6,5.68682065]
[1750682813199,0.5553,2265.3,2264.7,4.41546848]
[1750682815214,0.5553,2265.3,2264.8,10.17624761]
[1750682815422,0.5553,2265.3,2264.9,5.51485959]
[1750682815722,0.5553,2265.3,2264.9,5.5147347]
[1750682815872,0.5553,2265.3,2265.1,4.41480662]
[1750682816075,10.0,2265.9,2265.1,4.41480662]
[1750682816076,10.5553,2265.9,2265.1,4.41480662]
[1750682816381,0.5553,2265.7,2265.1,4.41480662]
[1750682816586,0.5553,2265.7,2265.2,0.44148066]
[1750682817192,0.5553,2265.7,2264.9,5.51480061]
[1750682817407,0.5553,2265.7,2265.0,4.4150103]
[1750682817604,0.5553,2265.7,2264.9,7.62077974]
[1750682817998,0.5553,2265.7,2264.9,3.20569476]
[1750682818597,0.5553,2265.7,2264.9,1.09969476]
[1750682818799,0.5553,2265.7,2264.7,4.41556151]
[1750682819002,0.5553,2265.5,2264.7,4.41556151]
[1750682819191,0.5553,2265.5,2264.6,6.12770449]
[1750682819594,0.5553,2265.4,2264.6,1.71200957]
[1750682820116,0.5553,2265.4,2264.6,0.4408775]
[1750682820280,0.5553,2265.4,2264.5,4.41590526]
[1750682820480,0.5553,2265.4,2264.5,4.41588681]
[1750682820813,0.5553,2265.4,2264.6,4.41568761]
[1750682821018,0.5553,2265.4,2264.7,4.41555564]
[1750682821206,0.5553,2265.4,2264.7,5.29867231]